bitfinex/quotes_ETHUSD_20250524
["timestamp","ask_amount","ask_price","bid_price","bid_amount"]
[1748123942143,0.55,2536.7,2536.6,12.5625]
[1748123942458,0.55,2536.7,2536.6,11.796]
[1748123945236,0.55,2536.7,2536.6,11.797]
[1748123945449,0.55,2536.6,2536.5,1.86294528]
[1748123945760,0.55,2536.4,2536.0,1.86294528]
[1748123946057,0.7604,2536.5,2536.0,1.86294528]
[1748123946058,0.55,2536.2,2536.0,1.86294528]
[1748123946265,1.217,2536.2,2536.1,11.797]
[1748123948931,7.337,2536.2,2536.0,1.86294528]
[1748123949132,8.1056,2536.2,2536.1,50.681]
[1748123949459,8.1056,2536.2,2536.1,11.797]
[1748123949665,8.1056,2536.2,2536.1,11.799]
[1748123952579,0.55,2535.8,2535.2,0.7585]
[1748123952748,9.3186,2535.6,2534.8,0.7585]
[1748123953071,0.55,2535.2,2534.2,1.38776103]
[1748123953277,15.48791677,2535.2,2534.5,1.86294528]
[1748123953572,15.48791677,2535.2,2535.1,11.85]
[1748123953573,16.98739168,2535.2,2535.1,11.85]
[1748123953777,26.46879168,2535.2,2534.1,1.91294528]
[1748123954079,0.55,2534.6,2534.1,0.05]
[1748123954288,1.3186,2534.4,2534.1,0.05]
[1748123954588,0.5993343,2534.3,2534.1,0.05]
[1748123954888,0.55,2534.2,2534.1,0.05]
[1748123955178,0.55,2534.2,2534.1,11.853]
[1748123955883,0.55,2534.4,2534.1,11.853]
[1748123956038,1.29386,2534.4,2534.2,0.5]
[1748123956240,1.29386,2534.4,2533.9,1.86294528]
[1748123956464,1.29386,2534.4,2533.4,0.7585]
[1748123956667,1.29386,2534.4,2533.5,1.86294528]
[1748123957595,0.55,2534.2,2533.6,11.803]
[1748123957947,0.5993395,2534.2,2533.6,11.803]
[1748123958274,0.55,2534.2,2533.6,11.803]
[1748123959286,0.8231,2534.1,2533.7,15.297]
[1748123959447,0.55,2534.0,2533.8,11.806]
[1748123960473,0.55,2534.0,2533.9,11.806]
[1748123960844,6.67,2534.0,2533.9,11.806]
[1748123963489,6.67,2534.0,2533.4,2.62004528]
[1748123963681,0.55,2533.8,2533.4,2.62004528]
[1748123963881,6.12,2533.7,2533.4,2.62004528]
[1748123964683,6.12,2533.7,2533.5,11.81]
[1748123966898,6.12,2533.7,2533.6,1.86294528]
[1748123968393,6.67,2534.0,2533.7,0.7674]
[1748123968692,6.12,2534.0,2533.9,1.86294528]
[1748123968893,6.12,2534.0,2533.9,2.89337981]
[1748123969097,6.12,2534.8,2534.0,0.7674]
[1748123969309,6.12,2534.8,2534.3,1.86294528]
[1748123969606,6.12,2534.8,2534.5,1.86294528]
[1748123969770,6.12,2534.8,2534.5,2.63034528]
[1748123970164,6.12,2534.8,2534.7,1.86294528]
[1748123970409,6.12,2534.8,2534.7,13.67394528]
[1748123970705,0.55,2535.2,2534.8,8.0]
[1748123971008,1.95518032,2535.3,2535.1,2.63034528]
[1748123971312,1.95518032,2535.3,2535.2,8.0]
[1748123972600,0.55,2535.8,2535.2,8.0]
[1748123972808,0.55,2535.8,2535.5,1.86294528]
[1748123973112,1.95518032,2536.2,2535.5,1.86294528]
[1748123973404,0.55,2535.8,2535.5,1.86294528]
[1748123973621,1.95518032,2536.2,2535.5,1.86294528]
[1748123973779,0.8101,2535.8,2535.6,11.808]
[1748123973983,0.55,2535.7,2535.6,11.808]
[1748123975309,6.67,2535.7,2535.6,11.808]
[1748123975608,6.67,2535.7,2535.2,0.5]
[1748123975609,1.3601,2535.3,2535.2,0.5]
[1748123975817,7.4801,2535.3,2535.2,0.5]
[1748123976271,15.4801,2535.3,2535.2,0.5]
[1748123976721,15.4801,2535.3,2535.2,12.307]
[1748123977433,9.3601,2535.3,2535.2,12.307]
[1748123977627,0.55,2535.2,2534.2,0.7942]
[1748123977938,0.55,2535.0,2534.2,0.7942]
[1748123978524,0.55,2535.1,2534.2,0.7942]
[1748123978722,0.04932038,2535.0,2534.2,0.7942]
[1748123978931,8.55,2535.2,2534.3,11.807]
[1748123979238,0.55,2535.0,2534.4,15.278]
[1748123979831,0.55,2535.2,2534.4,15.278]
[1748123980019,0.55,2535.2,2534.3,11.807]
[1748123984347,0.55,2535.2,2534.4,8.0]
[1748123988129,0.59931942,2535.2,2534.4,8.0]
[1748123989250,0.59931942,2535.2,2534.5,38.894]
[1748123989554,0.59931942,2535.2,2534.5,15.278]
[1748123989753,0.59931942,2535.2,2534.4,8.0]
[1748123993741,1.06855901,2535.2,2534.4,8.0]
[1748123996133,0.55,2535.0,2534.4,8.0]
[1748123999069,1.01923959,2535.0,2534.4,8.0]
[1748123999275,1.01923959,2535.0,2534.5,38.894]
[1748123999478,1.2239161,2535.0,2534.5,38.894]
[1748123999781,1.01923959,2535.0,2534.9,1.86228002]
[1748124001350,0.55,2535.2,2534.9,1.86228002]
[1748124003290,0.55,2535.2,2534.7,8.0]
[1748124003597,0.55,2534.8,2534.3,1.86228002]
[1748124003948,0.55,2534.8,2534.5,8.0]
[1748124004392,0.55,2534.8,2534.6,11.808]
[1748124004587,1.01923959,2534.7,2534.6,11.808]
[1748124004754,1.31442522,2534.7,2534.6,11.808]
[1748124005091,0.55,2534.4,2533.2,0.8159]
[1748124005384,0.55,2534.0,2533.6,1.86228002]
[1748124007091,0.55,2534.0,2533.7,11.808]
[1748124007468,0.55,2534.0,2533.4,1.86228002]
[1748124007765,0.55,2533.8,2533.4,1.86228002]
[1748124008094,0.55,2533.8,2533.5,11.808]
[1748124009198,0.55,2533.8,2533.6,38.881]
[1748124009351,0.55,2533.8,2533.6,15.262]
[1748124009766,0.55,2533.8,2533.7,11.81]
[1748124010361,0.55,2533.8,2533.2,1.86228002]
[1748124010566,0.55,2533.6,2533.3,11.81]
[1748124010763,0.55,2533.6,2533.0,1.86228002]
[1748124011090,0.55,2533.4,2533.0,1.86228002]
[1748124011299,0.55,2533.4,2533.2,11.81]
[1748124013094,0.55,2533.4,2533.2,13.67228002]
[1748124013296,0.55,2533.6,2533.2,13.67228002]
[1748124013694,0.55,2533.6,2533.2,11.81]
[1748124014899,0.7773,2533.7,2533.2,11.81]
[1748124015083,0.7773,2533.9,2533.3,3.8787103]
[1748124015600,0.55,2533.8,2533.3,3.8787103]
[1748124015763,0.46923959,2534.1,2533.4,0.701]
[1748124015964,1.95518032,2534.2,2533.4,0.701]
[1748124016471,1.95518032,2534.2,2533.6,3.8787103]
[1748124017277,0.55,2534.1,2533.7,8.0]
[1748124017804,0.7689,2534.5,2533.7,8.0]
[1748124018099,0.55,2534.4,2533.7,8.0]
[1748124018801,0.55,2534.4,2533.8,0.7637]
[1748124019396,0.7689,2534.1,2533.4,0.7637]
[1748124019586,0.55,2534.0,2533.6,8.0]
[1748124019784,0.55,2534.0,2533.5,11.812]
[1748124020363,0.55,2534.0,2533.6,8.0]
[1748124020597,0.46923959,2534.4,2533.2,8.0]
[1748124020800,0.04934052,2534.3,2533.7,11.812]
[1748124020999,0.55,2533.9,2533.7,11.812]
[1748124021162,0.55,2533.9,2533.2,8.0]
[1748124021362,0.55,2533.7,2533.3,11.812]
[1748124022164,0.55,2533.7,2533.1,0.05]
[1748124022394,1.3018,2533.5,2533.2,11.812]
[1748124022910,1.3018,2533.5,2533.3,11.812]
[1748124023062,1.3018,2533.5,2533.4,11.812]
[1748124023404,1.3018,2533.5,2533.1,0.05]
[1748124023703,0.7518,2533.5,2533.2,11.812]
[1748124023903,0.55,2533.4,2533.2,11.812]
[1748124024282,0.55,2533.4,2533.3,11.812]
[1748124024987,0.55,2533.5,2533.3,11.812]
[1748124025194,1.3018,2533.4,2533.1,0.05]
[1748124025368,0.55,2533.2,2533.1,0.05]
[1748124025709,0.55,2533.3,2533.1,11.863]
[1748124026061,1.3018,2533.2,2533.1,0.05]
[1748124026365,1.3018,2533.2,2533.1,11.863]
[1748124026684,1.3633,2533.2,2533.1,11.863]
[1748124027406,1.83253959,2533.2,2533.1,11.863]
[1748124028480,1.3633,2533.2,2533.1,11.863]
[1748124029109,0.55,2533.1,2532.2,0.7806]
[1748124029326,0.55,2533.1,2532.4,8.0]
[1748124030333,0.55,2533.1,2532.5,11.814]
[1748124033507,0.55,2532.9,2532.6,11.815]
[1748124038053,0.55,2532.9,2532.3,1.86587849]
[1748124038244,0.59936059,2532.9,2532.7,11.817]
[1748124038545,0.55,2532.9,2532.7,11.817]
[1748124039109,0.55,2532.9,2532.8,38.889]
[1748124041748,0.55,2532.9,2532.3,1.86587849]
[1748124041955,0.5993624,2532.8,2532.4,11.817]
[1748124042148,0.5993624,2532.8,2532.1,1.91587849]
[1748124042346,0.5993624,2532.8,2532.2,11.817]
[1748124042714,0.5993624,2532.8,2532.3,8.0]
[1748124043158,0.5993624,2532.8,2532.1,1.91587849]
[1748124043457,0.55,2532.8,2532.1,1.91587849]
[1748124043635,1.3513,2533.0,2532.2,11.817]
[1748124043828,0.55,2532.8,2532.2,11.817]
[1748124044059,0.55,2532.6,2532.2,11.817]
[1748124044261,0.55,2532.6,2532.3,11.817]
[1748124044764,0.55,2532.6,2532.4,11.817]
[1748124046860,0.55,2532.6,2532.1,1.91587849]
[1748124047248,0.55,2532.6,2532.2,11.818]
[1748124049266,0.55,2532.6,2532.3,38.894]
[1748124050351,0.76856284,2532.6,2532.3,38.894]
[1748124051271,0.76856284,2532.6,2532.2,11.818]
[1748124051567,1.23780243,2532.6,2532.2,11.818]
[1748124052281,0.55,2532.4,2532.3,11.819]
[1748124052436,0.75643024,2532.4,2532.3,11.819]
[1748124059275,0.75643024,2532.4,2532.3,27.077]
[1748124062567,0.75643024,2532.4,2532.3,11.819]
[1748124063300,0.75643024,2532.4,2532.1,1.91587849]
[1748124063593,0.75643024,2532.4,2532.2,11.82]
[1748124064895,0.75643024,2532.4,2532.3,11.82]
[1748124065397,0.75643024,2532.4,2532.1,1.91587849]
[1748124065604,0.75643024,2532.4,2532.2,11.82]
[1748124065961,1.22566983,2532.4,2532.2,11.82]
[1748124069118,1.22566983,2532.4,2532.3,23.64]
[1748124069287,1.22566983,2532.4,2532.3,38.899]
[1748124070018,1.22566983,2532.4,2532.1,0.05]
[1748124070223,0.04936881,2532.3,2532.1,0.05]
[1748124070520,0.55,2532.2,2532.1,0.05]
[1748124070705,0.55,2532.2,2532.1,11.87]
[1748124071518,1.16311673,2532.3,2532.1,11.87]
[1748124071818,1.16311673,2532.3,2532.2,11.82]
[1748124072018,1.38765835,2532.3,2532.2,11.82]
[1748124072521,1.75379396,2532.3,2532.2,11.82]
[1748124073156,1.75379396,2532.3,2532.1,0.05]
[1748124073282,1.75379396,2532.3,2532.2,11.82]
[1748124073981,2.57079396,2532.3,2532.1,0.05]
[1748124074180,1.78727348,2532.2,2532.1,0.05]
[1748124074392,1.78727348,2532.2,2532.1,11.87]
[1748124074393,2.10403304,2532.2,2532.1,11.87]
[1748124075634,5.63299002,2532.2,2532.1,0.05]
[1748124075837,0.817,2532.0,2531.2,1.86587849]
[1748124075995,0.817,2531.8,2531.4,1.86587849]
[1748124076202,1.367,2532.1,2531.5,0.8324]
[1748124076429,0.55,2531.9,2531.5,0.8324]
[1748124077014,0.55,2531.6,2531.5,0.8324]
[1748124078177,0.55,2531.7,2531.5,0.8324]
[1748124078738,0.55,2531.7,2531.4,1.86587849]
[1748124079116,0.55,2531.7,2531.5,38.883]
[1748124079310,1.367,2531.7,2531.6,11.822]
[1748124079638,1.367,2531.7,2531.1,10.74827849]
[1748124079835,1.367,2531.7,2531.3,8.0]
[1748124082297,1.367,2531.7,2531.1,0.8824]
[1748124082498,1.367,2531.7,2531.2,11.822]
[1748124083112,1.83478076,2531.7,2531.1,0.05]
[1748124083320,1.83478076,2531.7,2531.2,11.822]
[1748124083820,1.83478076,2531.7,2531.3,11.822]
[1748124085346,1.83478076,2531.7,2531.4,11.823]
[1748124085708,1.83478076,2531.7,2531.1,0.05]
[1748124085911,1.83478076,2531.7,2531.2,11.823]
[1748124085912,0.55,2531.5,2531.2,11.823]
[1748124086341,0.55,2531.3,2531.1,0.05]
[1748124086645,0.59939343,2531.2,2531.1,0.05]
[1748124086849,1.3139,2531.2,2531.1,11.873]
[1748124088205,1.3139,2531.2,2531.1,0.05]
[1748124088533,1.68119227,2531.2,2531.1,11.874]
[1748124089151,1.68119227,2531.2,2531.1,27.116]
[1748124089361,2.14726152,2531.2,2531.1,27.116]
[1748124090558,1.68119227,2531.2,2531.1,27.116]
[1748124091770,1.3139,2531.2,2531.1,11.874]
[1748124092472,0.55,2531.2,2531.1,11.874]
[1748124097319,0.55,2531.1,2530.8,0.7618]
[1748124097930,0.55,2531.3,2530.8,0.7618]
[1748124098545,0.55,2530.9,2530.5,0.7618]
[1748124098746,0.55,2530.9,2530.6,11.826]
[1748124099150,0.55,2530.9,2530.7,38.897]
[1748124102896,0.55,2530.9,2530.7,15.245]
[1748124104301,0.55,2530.9,2530.5,0.7618]
[1748124104527,0.55,2530.9,2530.8,11.826]
[1748124107085,1.14257693,2530.9,2530.8,11.826]
[1748124107288,0.55,2530.9,2530.8,11.826]
[1748124108403,0.55,2530.9,2530.5,0.7618]
[1748124108690,0.55,2530.9,2530.8,11.827]
[1748124109220,0.55,2530.9,2530.8,50.703]
[1748124109386,0.55,2530.9,2530.8,38.876]
[1748124109585,0.55,2530.9,2530.8,27.049]
[1748124109887,0.55,2530.9,2530.3,0.8169]
[1748124110123,0.55,2530.9,2530.4,11.827]
[1748124110324,1.01606925,2530.9,2530.4,11.827]
[1748124111339,0.55,2530.7,2530.4,11.827]
[1748124116950,1.01606925,2530.7,2530.4,11.827]
[1748124118014,1.01606925,2530.7,2530.5,11.827]
[1748124118446,1.01606925,2530.6,2530.5,11.827]
[1748124119159,1.01606925,2530.6,2530.5,50.705]
[1748124119970,1.01606925,2530.6,2530.5,27.05]
[1748124120966,0.55,2530.6,2530.5,27.05]
[1748124121959,0.55,2530.6,2530.5,11.827]
[1748124122339,1.01606925,2530.6,2530.5,11.827]
[1748124123262,0.55,2530.6,2530.5,11.827]
[1748124124489,1.01606925,2530.6,2530.5,11.827]
[1748124125466,0.55,2530.6,2530.5,11.827]
[1748124128501,1.01606925,2530.6,2530.5,11.827]
[1748124129187,1.01606925,2530.6,2530.5,33.674]
[1748124130741,1.01606925,2530.6,2530.5,27.051]
[1748124133571,0.55,2530.5,2530.4,11.828]
[1748124133995,1.01606925,2530.5,2530.4,11.828]
[1748124139009,1.01606925,2530.5,2530.3,1.09671845]
[1748124139307,1.01606925,2530.5,2530.4,50.683]
[1748124139508,1.45710025,2530.5,2530.4,50.683]
[1748124140505,1.45710025,2530.5,2530.4,27.027]
[1748124140697,1.45710025,2530.5,2530.4,11.828]
[1748124143612,1.45710025,2530.5,2530.1,0.05]
[1748124143917,1.45710025,2530.5,2530.2,12.92471845]
[1748124144304,0.55,2530.3,2530.2,12.92471845]
[1748124149158,0.55,2530.3,2530.2,15.199]
[1748124149462,1.3116,2530.3,2530.2,27.027]
[1748124149671,1.3116,2530.3,2530.1,0.05]
[1748124149880,1.3116,2530.3,2530.2,11.828]
[1748124150064,1.52364926,2530.3,2530.2,11.828]
[1748124150947,1.52364926,2530.3,2530.1,0.05]
[1748124151150,1.52364926,2530.3,2530.2,11.829]
[1748124151354,1.8892322,2530.3,2530.2,11.829]
[1748124153140,5.06845731,2530.3,2530.2,11.829]
[1748124153880,5.06845731,2530.3,2530.1,0.05]
[1748124154056,1.15349883,2530.2,2530.1,0.05]
[1748124155187,1.15349883,2530.2,2530.1,11.879]
[1748124155483,1.62102077,2530.2,2530.1,11.879]
[1748124156555,1.62102077,2530.2,2530.1,0.05]
[1748124156879,1.62102077,2530.2,2530.1,11.88]
[1748124158138,1.62102077,2530.2,2530.1,0.05]
[1748124158339,18.04043539,2530.2,2530.1,11.88]
[1748124158598,18.29049883,2530.2,2530.1,0.05]
[1748124158748,18.29049883,2530.2,2529.1,0.05]
[1748124158749,0.55,2529.7,2529.2,1.86501845]
[1748124158943,0.55,2529.5,2529.3,11.83]
[1748124159148,0.55,2529.5,2529.4,38.86]
[1748124159651,0.55,2529.5,2529.2,2.14028927]
[1748124159850,2.28373214,2529.5,2529.3,11.83]
[1748124161384,2.28373214,2529.5,2529.4,11.83]
[1748124162363,2.75105353,2529.5,2529.4,11.83]
[1748124162579,2.75105353,2529.5,2529.1,0.05]
[1748124162783,2.75105353,2529.5,2529.4,11.831]
[1748124163783,2.75105353,2529.5,2529.1,0.05]
[1748124163987,0.55,2529.3,2529.2,11.831]
[1748124164187,0.55,2529.3,2529.1,0.05]
[1748124164491,0.55,2529.3,2529.2,11.831]
[1748124165989,0.55,2529.3,2529.1,0.05]
[1748124166294,0.55,2529.3,2529.2,11.832]
[1748124166470,0.76869054,2529.3,2529.2,11.832]
[1748124169196,0.76869054,2529.3,2529.2,50.673]
[1748124169514,0.46732139,2529.6,2529.3,0.8241]
[1748124169798,1.01732139,2529.6,2529.5,1.37198927]
[1748124170010,0.55,2529.5,2529.4,1.37198927]
[1748124170602,0.55,2529.9,2529.4,1.37198927]
[1748124170806,0.55,2529.7,2529.4,1.37198927]
[1748124172877,0.55,2529.9,2529.3,0.8241]
[1748124173082,0.55,2529.9,2529.3,2.19608927]
[1748124174303,0.55,2529.9,2529.4,11.833]
[1748124174674,1.01732139,2529.9,2529.4,11.833]
[1748124175571,1.01732139,2529.9,2529.5,0.8171]
[1748124176408,1.01732139,2529.9,2529.5,2.18908927]
[1748124177166,0.55,2529.9,2529.5,2.18908927]
[1748124179105,0.55,2529.9,2529.6,6.626]
[1748124179285,0.55,2529.9,2529.6,38.841]
[1748124179707,0.55,2529.9,2529.6,15.176]
[1748124179986,1.01732139,2529.9,2529.6,15.176]
[1748124180318,1.01732139,2529.9,2529.5,2.18908927]
[1748124181714,1.21781526,2529.9,2529.5,2.18908927]
[1748124183918,0.55,2529.7,2529.5,2.18908927]
[1748124184551,0.55,2529.7,2529.6,11.832]
[1748124186915,1.01732139,2529.7,2529.6,11.832]
[1748124188673,0.55,2529.7,2529.6,11.832]
[1748124189115,0.55,2529.7,2529.6,18.458]
[1748124189278,0.55,2529.7,2529.6,50.673]
[1748124191321,0.46732139,2529.8,2529.6,50.673]
[1748124191322,0.55,2529.8,2529.6,50.673]
[1748124192086,0.55,2529.8,2529.6,11.832]
[1748124193229,1.01732139,2529.8,2529.6,11.832]
[1748124194242,0.55,2529.8,2529.6,11.832]
[1748124195146,1.01732139,2529.8,2529.6,11.832]
[1748124198346,1.01732139,2529.8,2529.5,1.09742265]
[1748124198583,1.01732139,2529.8,2529.7,11.832]
[1748124198793,1.2601143,2529.8,2529.7,11.832]
[1748124199197,1.2601143,2529.8,2529.7,50.642]
[1748124199658,1.2601143,2529.8,2529.7,15.146]
[1748124199858,0.79279291,2529.8,2529.7,26.978]
[1748124201786,0.79279291,2529.8,2529.7,11.832]
[1748124202393,0.55,2529.6,2529.5,1.09742265]
[1748124203591,0.55,2529.6,2529.5,12.92942265]
[1748124204852,0.55,2529.6,2529.5,13.74742265]
[1748124209397,0.55,2529.6,2529.5,52.55742265]
[1748124212709,0.55,2529.6,2529.5,13.74742265]
[1748124213561,0.55,2529.6,2529.5,1.91542265]
[1748124213768,0.55,2529.6,2529.5,11.832]
[1748124214688,1.01829919,2529.6,2529.5,11.832]
[1748124219213,1.01829919,2529.6,2529.5,50.642]
[1748124221427,1.01829919,2529.6,2529.5,15.146]
[1748124221582,1.01829919,2529.6,2529.5,26.978]
[1748124223396,1.01829919,2529.6,2529.5,11.832]
[1748124226062,7.08829919,2529.6,2529.5,11.832]
[1748124226755,7.84772623,2529.6,2529.5,11.832]
[1748124227245,1.77772623,2529.6,2529.5,11.832]
[1748124228516,0.55,2529.4,2529.1,0.05]
[1748124228740,0.55,2529.2,2529.1,0.05]
[1748124228941,2.43420885,2529.2,2529.1,11.882]
[1748124229284,11.84796937,2529.2,2529.1,44.035]
[1748124229496,11.84796937,2529.2,2529.1,0.05]
[1748124229650,0.55,2528.8,2528.1,0.05]
[1748124229845,0.55,2528.6,2528.3,1.09742265]
[1748124230048,0.55,2528.5,2528.4,12.6367]
[1748124230377,0.55,2528.5,2528.4,20.6367]
[1748124230762,0.46693505,2528.7,2528.4,20.6367]
[1748124230763,0.46693505,2528.7,2528.6,0.8047]
[1748124230973,0.46693505,2528.7,2528.6,21.77566215]
[1748124231147,0.46693505,2528.7,2528.1,0.05]
[1748124231347,0.46693505,2528.7,2528.5,1.09742265]
[1748124231549,0.7881,2528.9,2528.6,11.834]
[1748124232447,0.7881,2529.2,2528.6,13.20708725]
[1748124232645,0.28301042,2529.2,2528.7,0.80954737]
[1748124232848,1.96931668,2529.2,2528.8,1.37308725]
[1748124233045,1.01693505,2528.9,2528.8,1.37308725]
[1748124233660,0.55,2528.9,2528.8,1.37308725]
[1748124234155,1.96931668,2529.2,2528.5,0.7613]
[1748124234156,0.55,2528.8,2528.5,0.7613]
[1748124234354,0.55,2528.8,2528.2,0.7613]
[1748124234558,0.55,2528.8,2528.3,11.834]
[1748124234769,0.55,2528.8,2528.1,1.42308725]
[1748124234989,0.55,2528.6,2528.2,11.834]
[1748124235154,0.55,2528.6,2528.1,0.05]
[1748124235356,0.55,2528.4,2528.2,11.834]
[1748124235560,0.55,2528.2,2528.1,0.05]
[1748124235893,0.55,2528.2,2528.1,11.884]
[1748124236195,1.37308725,2528.8,2528.1,13.25708725]
[1748124236196,0.7972,2528.8,2528.1,13.25708725]
[1748124236365,0.55,2528.7,2528.3,1.37308725]
[1748124236567,0.46693505,2528.4,2528.3,1.37308725]
[1748124237399,0.55,2528.4,2528.3,2.13438725]
[1748124238603,1.96931668,2528.6,2528.3,2.13438725]
[1748124238828,1.96931668,2528.6,2528.2,8.0]
[1748124238829,1.96931668,2528.6,2528.5,2.13438725]
[1748124239143,1.96931668,2528.6,2528.5,34.01982598]
[1748124239324,1.96931668,2528.6,2528.5,49.13982598]
[1748124239978,6.07,2528.7,2528.5,49.13982598]
[1748124241026,6.07,2528.7,2528.5,2.34782598]
[1748124242345,6.07,2528.7,2528.6,0.7613]
[1748124242497,6.07,2528.7,2528.6,0.9960826]
[1748124243532,6.07,2528.7,2528.6,12.8320826]
[1748124244822,6.07,2528.7,2528.6,8.9960826]
[1748124245034,6.07,2528.7,2528.6,20.5973]
[1748124246221,11.54543505,2529.7,2528.8,0.7657]
[1748124246391,0.55,2529.5,2529.3,1.37308725]
[1748124247136,0.55,2529.6,2529.3,1.37308725]
[1748124248206,0.55,2529.6,2529.1,1.37308725]
[1748124248408,0.8285,2529.4,2529.2,11.835]
[1748124248632,0.55,2529.3,2529.2,11.835]
[1748124249034,0.8285,2529.8,2529.2,11.835]
[1748124249213,0.55,2529.7,2529.4,1.37308725]
[1748124249650,1.29543505,2530.0,2529.6,1.37308725]
[1748124249805,1.29543505,2530.0,2529.4,1.37308725]
[1748124249806,0.32647517,2529.9,2529.4,1.37308725]
[1748124250210,0.55,2529.8,2529.4,1.37308725]
[1748124254362,0.46693505,2530.1,2529.6,1.37308725]
[1748124254651,0.55,2530.0,2529.9,1.37308725]
[1748124254814,0.46693505,2530.1,2529.9,1.37308725]
[1748124255033,1.27223505,2530.5,2529.9,1.37308725]
[1748124255385,0.55,2530.3,2529.9,1.37308725]
[1748124256580,2.29347185,2530.4,2529.2,11.835]
[1748124256581,0.55,2530.1,2529.2,0.7891]
[1748124256877,0.55,2530.1,2530.0,11.834]
[1748124257227,1.3326,2530.1,2530.0,11.834]
[1748124258036,1.79953505,2530.1,2530.0,11.834]
[1748124258236,2.04174656,2530.1,2530.0,11.834]
[1748124258564,0.55,2529.9,2529.2,2.16218725]
[1748124258750,0.55,2529.7,2529.3,11.833]
[1748124259174,0.55,2529.9,2529.4,38.762]
[1748124259562,1.01693505,2529.9,2529.4,38.762]
[1748124259874,1.28336771,2529.9,2529.4,38.762]
[1748124260254,1.28336771,2529.9,2529.5,11.833]
[1748124262594,1.28336771,2529.9,2529.2,1.37308725]
[1748124262761,0.55,2529.7,2529.3,11.833]
[1748124262961,0.55,2529.7,2529.4,11.833]
[1748124263650,0.46693505,2529.8,2529.5,2.23042176]
[1748124263968,0.55,2529.7,2529.5,2.19088725]
[1748124264169,6.62,2529.6,2529.5,2.19088725]
[1748124265848,6.07,2529.6,2529.5,10.19088725]
[1748124267151,0.55,2530.0,2529.5,10.19088725]
[1748124267351,0.55,2530.0,2529.7,1.37308725]
[1748124267882,0.55,2530.2,2529.7,1.37308725]
[1748124268258,1.01693505,2530.2,2529.7,1.37308725]
[1748124269198,1.01693505,2530.2,2529.8,38.76]
[1748124271458,1.01693505,2530.2,2529.7,1.37308725]
[1748124275201,1.01693505,2530.2,2529.8,11.832]
[1748124277057,1.01693505,2530.2,2529.9,2.23520944]
[1748124277303,1.01693505,2530.2,2529.9,2.19568725]
[1748124277872,1.01693505,2530.2,2529.9,1.37308725]
[1748124278204,1.01693505,2530.2,2529.7,0.8226]
[1748124278377,0.55,2530.0,2529.8,11.832]
[1748124279309,0.55,2530.0,2529.9,38.755]
[1748124279468,0.55,2530.0,2529.9,16.46608725]
[1748124279871,0.46693505,2530.1,2529.9,9.37308725]
[1748124280297,6.07,2530.6,2529.9,9.37308725]
[1748124280298,0.46693505,2530.4,2529.9,9.37308725]
[1748124280685,0.46693505,2530.4,2530.1,1.37308725]
[1748124281571,1.01693505,2530.5,2530.1,1.37308725]
[1748124282207,1.01693505,2530.5,2530.2,1.37308725]
[1748124286007,1.01693505,2530.5,2530.4,1.37308725]
[1748124286215,6.58693505,2530.5,2530.4,1.37308725]
[1748124286506,7.13693505,2530.5,2530.4,1.37308725]
[1748124286803,0.55,2530.4,2529.5,0.7962]
[1748124287128,0.55,2530.0,2529.7,1.37308725]
[1748124287268,0.55,2530.0,2529.5,2.16928725]
[1748124287469,0.55,2530.0,2529.7,1.37308725]
[1748124289171,0.55,2530.0,2529.8,38.737]
[1748124289508,0.55,2530.0,2529.9,1.37308725]
[1748124290269,0.55,2530.1,2529.9,1.37308725]
[1748124290472,0.55,2530.1,2530.0,11.83]
[1748124291109,0.55,2530.3,2530.0,11.83]
[1748124293908,1.01693505,2530.3,2530.0,11.83]
[1748124294574,0.46693505,2530.3,2530.1,1.37308725]
[1748124294994,0.46693505,2530.4,2530.1,1.37308725]
[1748124295193,0.55,2530.3,2530.1,1.37308725]
[1748124299106,0.55,2530.3,2530.2,23.66]
[1748124299311,0.55,2530.3,2530.2,38.736]
[1748124299609,6.67,2530.3,2530.2,38.736]
[1748124299808,7.13693505,2530.3,2530.2,38.736]
[1748124300423,7.13693505,2530.3,2529.5,8.0]
[1748124300424,7.94683505,2530.3,2529.7,0.7629]
[1748124300608,7.94683505,2530.3,2529.8,13.20308725]
[1748124301283,0.55,2530.1,2529.8,13.20308725]
[1748124303325,0.55,2530.1,2529.6,1.37308725]
[1748124303700,0.55,2530.1,2529.7,11.83]
[1748124304307,0.55,2529.8,2529.7,11.83]
[1748124304800,6.67,2529.8,2529.2,1.37308725]
[1748124305113,0.55,2529.6,2529.3,11.83]
[1748124306152,1.01693505,2529.6,2529.3,11.83]
[1748124309245,1.01693505,2529.6,2529.4,50.572]
[1748124310341,0.55,2529.6,2529.4,50.572]
[1748124313003,0.55,2529.6,2529.4,11.831]
[1748124316042,0.55,2529.6,2528.9,0.7874]
[1748124316247,0.55,2529.2,2528.7,0.7852]
[1748124316414,0.55,2529.2,2528.8,11.833]
[1748124316944,0.55,2529.2,2528.9,1.37308725]